bitfinex/quotes_BTCUSD_20250308
["timestamp","ask_amount","ask_price","bid_price","bid_amount"]
[1741429255824,0.011587,86299.0,86292.0,0.0003398]
[1741429256100,0.011587,86297.0,86294.0,0.0475]
[1741429256305,0.011587,86299.0,86294.0,0.0475]
[1741429256438,0.011587,86298.0,86294.0,0.0475]
[1741429256637,0.011588,86296.0,86294.0,0.0475]
[1741429256859,0.011588,86295.0,86294.0,0.0475]
[1741429257525,0.243351,86295.0,86294.0,0.0475]
[1741429258760,0.2615291,86295.0,86294.0,0.0475]
[1741429260208,0.0297661,86295.0,86294.0,0.0475]
[1741429261212,0.0181781,86295.0,86294.0,0.0475]
[1741429261599,0.0297661,86295.0,86294.0,0.0475]
[1741429261835,0.0181781,86295.0,86294.0,0.0475]
[1741429263007,0.0297661,86295.0,86294.0,0.0475]
[1741429264182,0.0181781,86295.0,86294.0,0.0475]
[1741429265871,0.011588,86296.0,86294.0,0.0475]
[1741429266108,0.231752,86300.0,86294.0,0.0475]
[1741429266332,0.01817811,86295.0,86294.0,0.0475]
[1741429266558,0.011587,86297.0,86294.0,0.0475]
[1741429267335,0.543356,86293.0,86292.0,0.0003398]
[1741429267572,0.011588,86296.0,86279.0,0.10964]
[1741429267573,0.243393,86280.0,86279.0,0.10964]
[1741429267748,0.01159,86277.0,86275.0,0.10964]
[1741429268358,0.243404,86276.0,86275.0,0.10964]
[1741429268940,0.243404,86276.0,86275.0,0.11002778]
[1741429269134,0.26158527,86276.0,86275.0,0.11002778]
[1741429269534,0.26158527,86276.0,86275.0,0.00038778]
[1741429271447,0.25895556,86276.0,86275.0,0.00038778]
[1741429272294,0.243393,86280.0,86275.0,0.00038778]
[1741429272504,0.0087185,86282.0,86279.0,0.231805]
[1741429272648,0.3,86284.0,86279.0,0.231805]
[1741429272848,0.10365127,86285.0,86279.0,0.01159]
[1741429273614,0.10365127,86285.0,86283.0,0.060689]
[1741429273819,0.10365127,86285.0,86284.0,0.011589]
[1741429274009,0.10365127,86285.0,86283.0,0.0491]
[1741429274638,0.10365127,86285.0,86268.0,0.2321728]
[1741429274639,0.01159,86276.0,86271.0,0.10968]
[1741429274843,0.11524027,86285.0,86276.0,0.01159]
[1741429275035,0.10365127,86285.0,86279.0,0.01159]
[1741429275244,0.0117569,86298.0,86279.0,0.01159]
[1741429275463,0.3001699,86298.0,86294.0,0.231765]
[1741429275650,0.011587,86297.0,86289.0,0.011588]
[1741429275779,0.311588,86296.0,86288.0,0.11076]
[1741429276220,0.3001699,86298.0,86290.0,0.011588]
[1741429276422,0.011587,86297.0,86288.0,0.122349]
[1741429276627,0.011588,86292.0,86288.0,0.11076]
[1741429276833,0.011588,86289.0,86288.0,0.11076]
[1741429277045,0.243363,86292.0,86288.0,0.11076]
[1741429277217,0.011588,86289.0,86288.0,0.11076]
[1741429279240,0.01159,86276.0,86274.0,0.07676113]
[1741429279445,0.01159,86276.0,86275.0,0.11122778]
[1741429279698,0.01159,86276.0,86275.0,0.00038778]
[1741429280049,0.02977128,86276.0,86275.0,0.00038778]
[1741429280267,0.11287095,86277.0,86275.0,0.00038778]
[1741429280449,0.01159,86276.0,86275.0,0.00038778]
[1741429280633,0.02977184,86276.0,86275.0,0.00038778]
[1741429282286,0.32977184,86276.0,86275.0,0.00038778]
[1741429283309,0.33832836,86276.0,86275.0,0.00038778]
[1741429283702,0.32014652,86276.0,86275.0,0.00038778]
[1741429288027,0.33832958,86276.0,86275.0,0.00038778]
[1741429288999,0.03832958,86276.0,86275.0,0.00038778]
[1741429289205,0.02673958,86276.0,86275.0,0.00038778]
[1741429289688,0.01818306,86276.0,86275.0,0.00038778]
[1741429290122,0.02977306,86276.0,86275.0,0.00038778]
[1741429290328,0.01818306,86276.0,86275.0,0.00038778]
[1741429290533,0.01818306,86276.0,86275.0,0.01197778]
[1741429290704,0.01818306,86276.0,86275.0,0.08707778]
[1741429291138,0.01818306,86276.0,86275.0,0.07548778]
[1741429292819,0.01818306,86276.0,86275.0,0.07582778]
[1741429294593,0.02977306,86276.0,86275.0,0.07582778]
[1741429295643,0.01818306,86276.0,86275.0,0.18762778]
[1741429298361,0.26158706,86276.0,86275.0,0.18762778]
[1741429300184,0.26158706,86276.0,86275.0,0.11252778]
[1741429300591,0.01818306,86276.0,86275.0,0.11252778]
[1741429300823,0.011589,86282.0,86275.0,0.11252778]
[1741429301238,0.011589,86286.0,86275.0,0.11252778]
[1741429301450,0.011589,86287.0,86275.0,0.11252778]
[1741429302093,0.011589,86286.0,86275.0,0.11252778]
[1741429302421,0.011589,86282.0,86275.0,0.11252778]
[1741429302627,0.011589,86286.0,86275.0,0.11252778]
[1741429302814,0.011589,86282.0,86276.0,0.0762]
[1741429303167,0.011589,86285.0,86276.0,0.07735899]
[1741429303370,0.011589,86284.0,86276.0,0.0762]
[1741429303577,0.01159,86281.0,86276.0,0.0762]
[1741429303779,0.011589,86283.0,86276.0,0.0762]
[1741429304003,0.011589,86282.0,86277.0,0.11168]
[1741429307655,0.00017,86284.0,86277.0,0.11168]
[1741429307777,0.011759,86284.0,86277.0,0.11168]
[1741429308136,0.00017,86284.0,86277.0,0.11168]
[1741429308376,0.011759,86284.0,86277.0,0.11168]
[1741429308580,0.011589,86283.0,86277.0,0.11168]
[1741429308784,0.00017,86284.0,86281.0,0.231799]
[1741429308984,0.00017,86284.0,86282.0,0.243384]
[1741429309215,0.00017,86284.0,86283.0,0.011589]
[1741429309431,0.00017,86284.0,86283.0,0.139889]
[1741429309633,0.00017,86284.0,86283.0,0.1283]
[1741429315527,0.00017,86284.0,86283.0,0.360095]
[1741429315727,0.00017,86284.0,86283.0,0.38622485]
[1741429315944,0.00017,86284.0,86283.0,0.6743124]
[1741429318287,0.00017,86284.0,86283.0,0.69711955]
[1741429320157,0.00017,86284.0,86283.0,0.72211955]
[1741429320744,0.00017,86289.0,86288.0,0.54337]
[1741429320940,0.00017,86289.0,86288.0,0.79961085]
[1741429322989,1e-06,86289.0,86288.0,1.6466984]
[1741429323177,0.0001699,86298.0,86294.0,0.70739385]
[1741429323339,0.0001699,86298.0,86294.0,1.41515385]
[1741429327845,0.0001699,86298.0,86294.0,1.39015385]
[1741429330039,0.0001699,86298.0,86294.0,1.41515385]
[1741429330798,0.0001699,86328.0,86327.0,0.24326]
[1741429331028,0.0001699,86328.0,86327.0,0.7392084]
[1741429331439,0.0001699,86328.0,86327.0,0.28808755]
[1741429331643,0.0117529,86328.0,86327.0,0.28808755]
[1741429332068,0.00028609,86328.0,86327.0,0.28808755]
[1741429332589,0.00028609,86328.0,86327.0,0.41107055]
[1741429332788,0.00028609,86328.0,86327.0,0.39948755]
[1741429333777,0.24354309,86328.0,86327.0,0.39948755]
[1741429335302,0.01186909,86328.0,86327.0,0.39948755]
[1741429335659,0.24354309,86328.0,86327.0,0.39948755]
[1741429336019,0.24354309,86328.0,86327.0,0.1114]
[1741429336416,0.00028609,86328.0,86327.0,0.1114]
[1741429336665,0.00028609,86328.0,86327.0,0.35466]
[1741429341846,0.00028609,86328.0,86327.0,0.122983]
[1741429342164,0.00028609,86328.0,86327.0,0.35466]
[1741429344315,0.00028609,86328.0,86327.0,0.35422]
[1741429346237,0.00028609,86328.0,86327.0,0.122543]
[1741429346443,0.01186909,86328.0,86327.0,0.11096]
[1741429352650,0.00217216,86334.0,86327.0,0.11096]
[1741429352896,0.011583,86329.0,86327.0,0.11096]
[1741429353920,0.011583,86328.0,86327.0,0.11096]
[1741429358782,0.154838,86329.0,86327.0,0.11096]
[1741429359890,0.011583,86328.0,86327.0,0.11096]
[1741429363979,0.011583,86328.0,86327.0,0.1112996]
[1741429365862,0.011583,86329.0,86327.0,0.1112996]
[1741429366091,0.011583,86331.0,86327.0,0.1112996]
[1741429366664,0.011583,86330.0,86327.0,0.1112996]
[1741429366868,0.011583,86329.0,86327.0,0.1112996]
[1741429367908,8.524e-05,86332.0,86329.0,0.231669]
[1741429368153,8.524e-05,86332.0,86330.0,0.231666]
[1741429368362,8.524e-05,86332.0,86330.0,0.243249]
[1741429368578,8.524e-05,86332.0,86331.0,0.011583]
[1741429368740,8.524e-05,86332.0,86330.0,0.011583]
[1741429369079,8.524e-05,86332.0,86329.0,0.231669]
[1741429369278,8.524e-05,86332.0,86328.0,0.011583]
[1741429369454,0.01166824,86332.0,86327.0,0.1112996]
[1741429369656,8.524e-05,86332.0,86328.0,0.011583]
[1741429369862,8.524e-05,86332.0,86331.0,0.140383]
[1741429370063,8.524e-05,86332.0,86331.0,0.14154121]
[1741429373077,8.524e-05,86332.0,86331.0,0.140383]
[1741429376574,0.00025504,86332.0,86331.0,0.140383]
[1741429380072,0.00025504,86332.0,86331.0,0.15492385]
[1741429381010,0.00025504,86332.0,86331.0,0.15608202]
[1741429391663,0.00025504,86332.0,86331.0,0.02728202]
[1741429392664,0.00025504,86332.0,86331.0,0.39086957]
[1741429392872,0.00025504,86332.0,86331.0,0.3897114]
[1741429395674,0.00025504,86332.0,86331.0,0.4360114]
[1741429399538,0.00025504,86332.0,86331.0,0.4310114]
[1741429401647,0.00025504,86332.0,86331.0,0.7310114]
[1741429403437,0.00025504,86332.0,86331.0,0.7560114]
[1741429404040,0.00025504,86332.0,86331.0,0.77944392]
[1741429404445,0.00025504,86332.0,86331.0,1.31344392]
[1741429406668,0.44868,86378.0,86353.0,0.01158]
[1741429406878,0.011579,86361.0,86355.0,0.24614185]
[1741429407079,0.011579,86361.0,86355.0,0.24114185]
[1741429407282,0.011579,86362.0,86356.0,0.00042889]
[1741429407912,0.011579,86362.0,86355.0,0.25272185]
[1741429408909,0.011579,86361.0,86355.0,0.01454085]
[1741429409508,0.011579,86357.0,86355.0,0.01454085]
[1741429409739,0.011579,86356.0,86355.0,0.01454085]
[1741429410179,0.01158,86351.0,86346.0,0.00042959]
[1741429410396,0.01158,86349.0,86347.0,0.12466085]
[1741429410586,0.243186,86354.0,86347.0,0.12466085]
[1741429410799,0.01158,86353.0,86347.0,0.12466085]
[1741429411359,0.011579,86356.0,86349.0,0.02612085]
[1741429412255,0.231602,86355.0,86348.0,0.01454085]
[1741429412502,0.231602,86355.0,86346.0,0.28808755]
[1741429412503,0.01158,86351.0,86346.0,0.28808755]
[1741429412704,0.01158,86354.0,86349.0,0.12166]
[1741429412985,0.2,86383.0,86349.0,0.12166]
[1741429412986,0.011579,86362.0,86354.0,0.243182]
[1741429413234,0.011579,86361.0,86356.0,0.011579]
[1741429413491,0.011579,86356.0,86349.0,0.11008]
[1741429413750,0.01158,86351.0,86350.0,0.11004]
[1741429414008,0.011579,86360.0,86353.0,0.231607]
[1741429414270,0.243162,86363.0,86357.0,0.243175]
[1741429414515,0.09250998,86365.0,86359.0,0.011579]
[1741429414749,0.011579,86363.0,86358.0,0.011579]
[1741429415007,0.011579,86360.0,86354.0,0.01454085]
[1741429415243,0.011579,86361.0,86355.0,0.243182]
[1741429415411,0.011579,86357.0,86350.0,0.11004]
[1741429415646,0.01158,86353.0,86350.0,0.11004]
[1741429415901,0.011579,86356.0,86350.0,0.12162]
[1741429416110,0.01158,86355.0,86350.0,0.12162]
[1741429416907,0.243178,86356.0,86350.0,0.12162]
[1741429416908,0.011579,86360.0,86353.0,0.01158]
[1741429417163,0.00011616,86361.0,86353.0,0.01158]
[1741429417411,0.00011616,86361.0,86356.0,0.011579]
[1741429417664,0.00011616,86361.0,86357.0,0.243175]
[1741429418404,0.011579,86359.0,86354.0,0.02612085]
[1741429418600,0.011579,86357.0,86354.0,0.01454085]
[1741429418848,0.231594,86358.0,86354.0,0.01454085]
[1741429419323,0.01158,86355.0,86354.0,0.01454085]
[1741429419696,0.243175,86357.0,86354.0,0.01454085]
[1741429419894,0.243173,86358.0,86354.0,0.01454085]
[1741429420582,0.243173,86358.0,86352.0,0.01158]
[1741429420795,0.01169516,86361.0,86355.0,0.231599]
[1741429420987,0.01169516,86361.0,86356.0,0.011579]
[1741429421247,0.00011616,86361.0,86357.0,0.243175]
[1741429421448,0.00011616,86361.0,86358.0,0.011579]
[1741429421689,0.01169516,86361.0,86356.0,0.011579]
[1741429421869,0.011579,86360.0,86355.0,0.243181]
[1741429422139,0.243167,86360.0,86355.0,0.243181]
[1741429422517,0.10365127,86359.0,86355.0,0.243181]
[1741429422881,0.10365127,86359.0,86358.0,0.243173]
[1741429423702,0.10365127,86359.0,86358.0,0.25771385]
[1741429425639,0.01158,86354.0,86351.0,0.01454085]
[1741429428851,0.011579,86359.0,86352.0,0.24319]
[1741429429044,0.011579,86359.0,86354.0,0.231604]
[1741429429630,0.011579,86359.0,86352.0,0.24319]
[1741429429915,0.011579,86357.0,86352.0,0.24319]
[1741429430202,0.10365127,86357.0,86352.0,0.24319]
[1741429430550,0.11523027,86357.0,86352.0,0.01158]
[1741429430750,0.11523027,86357.0,86351.0,0.02612085]
[1741429430996,0.011579,86356.0,86351.0,0.02612085]
[1741429431193,0.11523027,86357.0,86351.0,0.02612085]
[1741429431354,0.11523027,86357.0,86352.0,0.24319]
[1741429431553,0.10365127,86357.0,86352.0,0.24319]
[1741429431754,0.10365127,86357.0,86353.0,0.231605]
[1741429431958,0.10365127,86357.0,86356.0,0.243178]
[1741429433031,0.10365127,86358.0,86356.0,0.243178]
[1741429433977,0.10365127,86358.0,86354.0,0.231604]
[1741429435056,0.10365127,86358.0,86355.0,0.01454085]
[1741429436340,0.10365127,86358.0,86357.0,0.011579]
[1741429436559,0.10365127,86358.0,86356.0,0.308299]
[1741429437251,0.10376743,86361.0,86360.0,0.231588]
[1741429437451,0.10376743,86361.0,86360.0,0.352847]
[1741429438168,0.10376743,86361.0,86360.0,0.10968]
[1741429439807,0.10376743,86361.0,86360.0,0.341268]
[1741429440753,0.10393713,86361.0,86360.0,0.341268]
[1741429441014,0.10393713,86361.0,86360.0,0.10968]
[1741429441351,0.00028586,86361.0,86360.0,0.10968]
[1741429442620,0.01186486,86361.0,86360.0,0.10968]
[1741429443118,0.24345086,86361.0,86360.0,0.10968]
[1741429444574,0.27852382,86361.0,86360.0,0.10968]
[1741429445272,0.27852382,86361.0,86355.0,0.0003394]
[1741429445273,0.011579,86356.0,86355.0,0.0003394]
[1741429445481,0.011579,86356.0,86355.0,0.1100194]
[1741429446109,0.22505434,86360.0,86355.0,0.1100194]
[1741429446228,0.231598,86357.0,86355.0,0.1100194]
[1741429446912,0.011579,86356.0,86355.0,0.1100194]
[1741429447087,0.011579,86360.0,86355.0,0.1100194]
[1741429447254,0.00028586,86361.0,86356.0,0.243175]
[1741429447461,0.00028586,86361.0,86359.0,0.011579]
[1741429447687,0.00028586,86361.0,86358.0,0.231593]
[1741429448075,0.00028586,86361.0,86358.0,0.243172]
[1741429448710,0.24345086,86361.0,86355.0,0.1215994]
[1741429449681,0.00028586,86361.0,86357.0,0.011579]
[1741429449929,0.00028586,86361.0,86359.0,0.011579]
[1741429450575,0.00028586,86361.0,86360.0,0.076]
[1741429451320,0.01186486,86361.0,86360.0,0.076]
[1741429451514,0.01186486,86361.0,86355.0,0.1975994]
[1741429451759,0.00028586,86361.0,86356.0,0.243178]
[1741429451966,0.00028586,86361.0,86356.0,0.243177]
[1741429452184,0.23187186,86361.0,86356.0,0.011579]
[1741429452396,0.24345086,86361.0,86355.0,0.1975994]
[1741429452588,0.24317,86359.0,86355.0,0.1860194]
[1741429452747,0.011579,86357.0,86355.0,0.1860194]
[1741429453151,0.243178,86356.0,86355.0,0.1100194]
[1741429453943,0.011579,86359.0,86355.0,0.1100194]
[1741429454082,0.01186486,86361.0,86355.0,0.3416184]
[1741429454293,0.00028586,86361.0,86355.0,0.3531984]
[1741429454496,0.00028586,86361.0,86357.0,0.011579]
[1741429454740,0.011579,86360.0,86355.0,0.3531984]
[1741429455136,0.011579,86359.0,86355.0,0.1100194]
[1741429456824,0.011579,86358.0,86355.0,0.1100194]
[1741429457025,0.011579,86360.0,86355.0,0.1100194]
[1741429457486,0.00028586,86361.0,86360.0,0.011579]
[1741429461622,0.00028586,86361.0,86360.0,0.092679]
[1741429462828,0.00028586,86361.0,86360.0,0.0811]
[1741429464062,0.01186486,86361.0,86360.0,0.0811]
[1741429464258,0.011579,86357.0,86356.0,0.01454085]
[1741429464828,0.01186486,86361.0,86356.0,0.25771785]
[1741429465101,0.24345186,86361.0,86356.0,0.01454085]
[1741429465239,0.011579,86360.0,86356.0,0.01454085]
[1741429466915,0.011579,86359.0,86356.0,0.01454085]
[1741429467788,0.24345186,86361.0,86360.0,0.231588]
[1741429467789,0.00028586,86361.0,86360.0,0.231588]
[1741429468371,0.00028586,86361.0,86360.0,0.243167]
[1741429469255,0.00028586,86361.0,86359.0,0.011579]
[1741429469427,0.00028586,86361.0,86358.0,0.231593]
[1741429469757,0.011579,86357.0,86356.0,0.10968]
[1741429470116,0.04669007,86357.0,86356.0,0.10968]
[1741429470521,0.011579,86357.0,86356.0,0.10968]
[1741429471041,0.011579,86360.0,86356.0,0.10968]
[1741429471851,0.011579,86360.0,86356.0,0.08968]
[1741429472054,0.00028586,86361.0,86356.0,0.101259]
[1741429472286,0.00028586,86361.0,86358.0,0.231593]
[1741429472493,0.00028586,86361.0,86359.0,0.087079]
[1741429473126,0.00028586,86361.0,86359.0,0.0755]
[1741429473311,0.01186486,86361.0,86359.0,0.0755]
[1741429473525,0.011579,86360.0,86359.0,0.0755]
[1741429473989,0.00028586,86361.0,86359.0,0.307091]
[1741429474193,0.00028586,86361.0,86359.0,0.0755]
[1741429474842,0.00028586,86361.0,86356.0,0.08968]
[1741429475052,0.243173,86358.0,86357.0,0.01454085]
[1741429475435,0.011579,86359.0,86357.0,0.01454085]
[1741429475436,0.11566386,86359.0,86357.0,0.01454085]
[1741429476541,0.10408486,86359.0,86358.0,0.243173]
[1741429480390,0.10408486,86359.0,86357.0,0.01454085]
[1741429480565,0.10408486,86359.0,86356.0,0.0900194]
[1741429480773,0.231594,86358.0,86356.0,0.0900194]
[1741429481182,0.11566386,86359.0,86356.0,0.0900194]
[1741429481383,0.10408486,86359.0,86356.0,0.0900194]
[1741429482038,0.10408486,86360.0,86356.0,0.0900194]
[1741429482840,0.10408486,86360.0,86359.0,0.24317]
[1741429483422,0.10408486,86360.0,86359.0,0.011579]
[1741429483604,0.10408486,86360.0,86358.0,0.011579]
[1741429485118,0.00028586,86361.0,86358.0,0.011579]
[1741429486582,0.00028586,86361.0,86357.0,0.231596]
[1741429488445,0.00028586,86361.0,86357.0,0.243175]
[1741429490916,0.00028586,86361.0,86360.0,0.38480785]
[1741429499018,0.00028586,86361.0,86360.0,0.39180785]
[1741429499839,0.00028586,86361.0,86360.0,0.39880785]
[1741429500868,0.00028586,86361.0,86360.0,0.15564085]
[1741429501072,0.00028586,86361.0,86360.0,0.39880785]
[1741429501396,0.10295079,86363.0,86361.0,0.01454085]
[1741429501598,0.10295079,86363.0,86362.0,0.25770285]
[1741429502910,0.10295079,86363.0,86362.0,0.26470285]
[1741429503680,0.10295079,86363.0,86362.0,0.34420285]
[1741429504108,0.001,86369.0,86368.0,0.33718585]
[1741429504308,0.001,86369.0,86368.0,0.44682585]
[1741429505765,0.001,86369.0,86368.0,0.45382585]
[1741429506269,0.001,86369.0,86368.0,0.46082585]
[1741429508357,0.001,86369.0,86368.0,0.7489134]
[1741429512767,0.0011699,86369.0,86368.0,0.7489134]
[1741429516699,0.231527,86383.0,86375.0,0.231548]
[1741429516872,0.231524,86384.0,86375.0,0.231548]
[1741429517083,0.011576,86381.0,86374.0,0.011577]
[1741429517283,0.011576,86382.0,86375.0,0.243125]
[1741429517476,0.011576,86379.0,86374.0,0.011577]
[1741429517806,0.011577,86378.0,86374.0,0.01454085]
[1741429517982,0.011577,86378.0,86375.0,0.007]
[1741429518371,0.011577,86378.0,86374.0,0.01454085]
[1741429518780,0.011577,86378.0,86375.0,0.007]
[1741429519035,0.011577,86378.0,86374.0,0.02154085]
[1741429519183,0.011577,86378.0,86373.0,0.01454085]
[1741429519385,0.011577,86378.0,86375.0,0.007]
[1741429520205,0.011577,86378.0,86374.0,0.007]
[1741429520558,0.011576,86379.0,86374.0,0.007]
[1741429520764,0.011576,86380.0,86374.0,0.018577]
[1741429520972,0.011576,86379.0,86374.0,0.011577]
[1741429522156,0.011576,86380.0,86375.0,0.018577]
[1741429522556,0.011576,86380.0,86375.0,0.007]
[1741429522783,0.011576,86379.0,86375.0,0.007]
[1741429522994,0.011576,86379.0,86374.0,0.011577]
[1741429523413,0.011576,86379.0,86375.0,0.1096]
[1741429524027,0.2431,86385.0,86378.0,0.23154]
[1741429524200,0.231537,86380.0,86375.0,0.1096]
[1741429524427,0.011577,86377.0,86375.0,0.1166]
[1741429524829,0.011577,86377.0,86375.0,0.1096]
[1741429525207,0.231529,86382.0,86378.0,0.007]
[1741429525671,0.03875971,86384.0,86376.0,0.01454085]
[1741429525903,0.03892951,86384.0,86383.0,0.011576]
[1741429526098,0.0001698,86384.0,86383.0,0.02611685]
[1741429528542,0.0001698,86384.0,86383.0,0.03311685]
[1741429529373,0.0001698,86384.0,86383.0,0.02854085]
[1741429530409,0.0001698,86384.0,86383.0,0.16867441]
[1741429530629,0.0001698,86384.0,86383.0,0.16912452]
[1741429530830,0.0001698,86384.0,86383.0,0.21582183]
[1741429531014,0.0001698,86384.0,86383.0,0.16912452]
[1741429531208,0.0001698,86384.0,86383.0,0.16212452]
[1741429531916,0.0001698,86384.0,86383.0,0.16912452]
[1741429532100,0.0001698,86384.0,86383.0,0.15512452]
[1741429532302,0.0001698,86384.0,86383.0,0.16212452]
[1741429532524,0.0001698,86384.0,86383.0,0.16912452]
[1741429532885,0.0001698,86384.0,86383.0,0.45721207]
[1741429533127,0.0001698,86384.0,86383.0,0.45605451]
[1741429534833,0.04692505,86404.0,86383.0,0.45605451]
[1741429534834,0.1386442,86410.0,86402.0,0.231475]
[1741429535018,0.1386442,86410.0,86403.0,0.121133]
[1741429535019,0.05964812,86410.0,86403.0,0.121133]
[1741429535196,0.00011618,86407.0,86403.0,0.121133]
[1741429536218,0.00011618,86407.0,86403.0,0.10956]
[1741429536578,0.00826118,86409.0,86403.0,0.341031]
[1741429536783,0.05964812,86410.0,86403.0,0.352604]
[1741429536994,0.05964812,86410.0,86403.0,0.121133]
[1741429537193,0.243033,86408.0,86403.0,0.10956]
[1741429537396,0.011573,86406.0,86403.0,0.10956]
[1741429537928,0.011573,86406.0,86403.0,0.11656]
[1741429538337,0.011573,86406.0,86403.0,0.10956]
[1741429538487,0.011573,86406.0,86403.0,0.11656]
[1741429538687,0.011573,86406.0,86403.0,0.12356]
[1741429538948,0.011573,86404.0,86403.0,0.007]
[1741429539164,0.011573,86404.0,86403.0,0.014]
[1741429540087,0.011573,86404.0,86403.0,0.007]
[1741429540423,0.011573,86404.0,86403.0,0.014]
[1741429540830,0.011573,86404.0,86403.0,0.007]
[1741429541004,0.011573,86404.0,86403.0,0.014]
[1741429552352,0.0117428,86404.0,86403.0,0.014]
[1741429553756,0.0001698,86404.0,86403.0,0.014]
[1741429553982,0.0117428,86404.0,86403.0,0.014]
[1741429554197,0.0001698,86404.0,86403.0,0.025573]
[1741429554817,0.0001698,86404.0,86403.0,0.099273]
[1741429555159,0.0001698,86404.0,86403.0,0.106273]
[1741429555707,0.0001698,86404.0,86403.0,0.099273]
[1741429555905,0.0001698,86404.0,86403.0,0.106273]
[1741429558143,0.0001698,86404.0,86403.0,0.12081385]
[1741429559827,0.0001698,86404.0,86403.0,0.10681385]
[1741429560311,0.0001698,86404.0,86403.0,0.12081385]
[1741429560652,0.0001698,86404.0,86403.0,0.10681385]
[1741429560856,0.0001698,86404.0,86403.0,0.11381385]
[1741429561096,0.11089108,86417.0,86406.0,0.243037]
[1741429561306,0.11089108,86417.0,86407.0,0.10956]
[1741429561472,0.0005698,86419.0,86407.0,0.121133]
[1741429561688,0.0005698,86419.0,86415.0,0.0807]
[1741429561894,0.011571,86416.0,86408.0,0.10681385]
[1741429562085,0.011571,86416.0,86409.0,0.02611285]
[1741429562284,0.04814788,86417.0,86409.0,0.02611285]
[1741429562508,0.0121408,86419.0,86411.0,0.011572]
[1741429562763,0.011571,86416.0,86409.0,0.02611285]
[1741429562999,0.011571,86417.0,86410.0,0.231454]
[1741429563209,0.011572,86415.0,86409.0,0.01454085]
[1741429563406,0.011572,86415.0,86409.0,0.02154085]
[1741429563606,0.231438,86416.0,86409.0,0.02154085]
[1741429563869,0.011572,86414.0,86409.0,0.02154085]
[1741429564294,0.011572,86414.0,86410.0,0.007]
[1741429564532,0.05943588,86417.0,86410.0,0.250024]
[1741429564707,0.05943588,86417.0,86411.0,0.011572]
[1741429565168,0.05943588,86417.0,86410.0,0.011572]
[1741429565376,0.011572,86414.0,86409.0,0.01454085]
[1741429565583,0.0117418,86414.0,86409.0,0.01454085]
[1741429565706,0.0117418,86414.0,86409.0,0.02154085]
[1741429565924,0.0117418,86414.0,86409.0,0.01454085]
[1741429566317,0.0117418,86414.0,86410.0,0.007]
[1741429566318,0.0001698,86414.0,86410.0,0.007]
[1741429566519,0.0001698,86414.0,86412.0,0.231447]
[1741429566771,0.0001698,86414.0,86412.0,0.011572]
[1741429566958,0.0001698,86414.0,86413.0,0.243018]
[1741429567943,0.0001698,86414.0,86413.0,0.011572]
[1741429568350,0.0001698,86414.0,86412.0,0.011572]
[1741429568585,0.0001698,86414.0,86411.0,0.1215]
[1741429568796,0.0001698,86414.0,86412.0,0.243021]
[1741429569021,0.0001698,86414.0,86412.0,0.250021]
[1741429569579,0.0001698,86414.0,86413.0,0.007]
[1741429570017,0.0001698,86414.0,86412.0,0.25002]
[1741429570220,0.0001698,86414.0,86413.0,0.011572]
[1741429571446,0.0001698,86414.0,86413.0,0.018572]
[1741429572010,0.0001698,86414.0,86413.0,0.025572]
[1741429573077,0.0001698,86414.0,86413.0,0.04011285]
[1741429573239,0.0001698,86414.0,86413.0,0.12321285]
[1741429578506,0.0001698,86414.0,86413.0,0.12436995]
[1741429578714,0.0001698,86414.0,86413.0,0.11961449]
[1741429578885,0.0001698,86414.0,86413.0,0.4074575]
[1741429579093,0.0001698,86414.0,86413.0,0.4063004]
[1741429580416,0.0001698,86414.0,86413.0,0.40655854]
[1741429580589,0.0001698,86414.0,86413.0,0.4063004]
[1741429580823,0.0001698,86414.0,86413.0,0.3993004]
[1741429581391,0.0001698,86414.0,86413.0,0.3923004]
[1741429581589,0.0001698,86414.0,86413.0,0.4450004]
[1741429581776,0.0001698,86414.0,86413.0,0.4380004]
[1741429582177,0.0001698,86414.0,86413.0,0.4450004]
[1741429582400,0.0001698,86414.0,86413.0,0.4520004]
[1741429582811,0.0001698,86414.0,86413.0,0.4450004]
[1741429583186,0.0001698,86414.0,86413.0,0.4520004]
[1741429584395,0.0001698,86414.0,86413.0,0.4450004]
[1741429584591,0.0001698,86414.0,86413.0,0.43826039]
[1741429585007,0.0001698,86414.0,86413.0,0.74526039]
[1741429585228,0.0001698,86414.0,86413.0,0.7450004]
[1741429585740,0.0001698,86414.0,86413.0,0.73827389]
[1741429586079,0.0001698,86414.0,86413.0,0.7520004]
[1741429586504,0.0001698,86414.0,86413.0,0.7450004]
[1741429587005,0.0001698,86414.0,86413.0,0.7520004]
[1741429587333,0.0001698,86414.0,86413.0,1.2860004]
[1741429587505,4e-07,86419.0,86418.0,0.67884485]
[1741429587705,4e-07,86419.0,86418.0,0.93688485]
[1741429587935,4e-07,86419.0,86418.0,0.96188485]
[1741429590264,4e-07,86419.0,86418.0,0.96888485]
[1741429590901,4e-07,86419.0,86418.0,0.97588485]
[1741429591682,0.001,86429.0,86427.0,0.67831985]
[1741429593566,0.001,86429.0,86427.0,0.68531985]
[1741429594617,0.001,86429.0,86427.0,0.69231985]
[1741429596404,0.001,86429.0,86427.0,0.366459]
[1741429596807,0.001,86429.0,86427.0,0.12348]
[1741429597567,0.001,86429.0,86427.0,0.13505]
[1741429598314,0.001,86429.0,86427.0,0.12805]
[1741429598742,0.001,86429.0,86427.0,0.13505]
[1741429598953,0.001,86429.0,86427.0,0.12805]
[1741429599153,0.001,86429.0,86427.0,0.11648]
[1741429599355,0.001,86429.0,86427.0,0.12348]
[1741429599550,0.001,86429.0,86427.0,0.11648]
[1741429599765,0.001,86429.0,86427.0,0.10948]
[1741429600201,0.001,86429.0,86427.0,0.11648]
[1741429600398,0.001,86429.0,86427.0,0.12805]
[1741429600854,0.02309726,86428.0,86427.0,0.13505]
[1741429601095,0.02309726,86428.0,86427.0,0.12105]
[1741429601268,0.02309726,86428.0,86418.0,0.14856]
[1741429601496,0.01157,86423.0,86418.0,0.14856]
[1741429601622,0.01157,86423.0,86422.0,0.39752715]
[1741429602056,0.05835488,86423.0,86422.0,0.39752715]
[1741429602231,0.01157,86427.0,86422.0,0.39752715]
[1741429602432,0.01157,86426.0,86422.0,0.40452715]
[1741429602633,0.01157,86424.0,86422.0,0.39752715]